bitfinex/quotes_SOLUSD_20250718
["timestamp","ask_amount","ask_price","bid_price","bid_amount"]
[1752880944694,9.90499947,177.31,177.29,0.03]
[1752880948112,9.24499947,177.31,177.29,0.03]
[1752880948698,9.90499947,177.31,177.29,0.03]
[1752880949417,4.26510394,177.3,177.29,0.03]
[1752880949714,3.60510394,177.3,177.29,0.03]
[1752880949903,9.90499947,177.31,177.29,0.03]
[1752880950297,5.63989553,177.31,177.29,0.03]
[1752880950793,6.29989553,177.31,177.29,0.03]
[1752880952413,0.66,177.3,177.29,0.03]
[1752880953595,6.30015792,177.3,177.29,0.03]
[1752880954119,6.30015792,177.3,177.27,0.03]
[1752880954120,14.12431008,177.3,177.27,0.03]
[1752880954325,5.64015792,177.3,177.27,0.73]
[1752880954509,5.64015792,177.3,177.28,0.7]
[1752880954908,5.64015792,177.3,177.27,0.03]
[1752880955109,5.64015792,177.3,177.27,0.73]
[1752880955510,6.30015792,177.3,177.27,0.73]
[1752880957416,3.60510394,177.31,177.27,4.33510394]
[1752880957629,0.66,177.34,177.3,3.60510394]
[1752880957804,0.66,177.34,177.31,3.60510394]
[1752880958128,4.2169566,177.35,177.31,4.30510394]
[1752880958425,4.8769566,177.35,177.31,4.30510394]
[1752880959233,10.51572269,177.35,177.31,4.30510394]
[1752880959431,4.2169566,177.34,177.31,4.30510394]
[1752880960113,9.85586737,177.34,177.31,4.30510394]
[1752880960305,5.63891077,177.34,177.31,4.30510394]
[1752880960713,5.63891077,177.34,177.32,3.60510394]
[1752880962010,6.29860745,177.35,177.32,3.60510394]
[1752880963118,5.63824988,177.36,177.32,4.30510394]
[1752880963439,5.69795183,177.37,177.33,4.30510394]
[1752880963607,0.06,177.37,177.34,3.60510394]
[1752880963808,5.69796398,177.37,177.34,4.30510394]
[1752880964032,6.35796398,177.37,177.34,4.30510394]
[1752880964238,6.35796398,177.37,177.35,3.60510394]
[1752880964397,0.06,177.37,177.35,4.30510394]
[1752880964600,0.06,177.37,177.36,0.7]
[1752880964829,0.06,177.37,177.36,4.30510394]
[1752880966000,0.06,177.37,177.36,0.7]
[1752880966206,0.06,177.37,177.36,4.30510394]
[1752880967507,0.06,177.37,177.36,3.60510394]
[1752880967909,0.06,177.37,177.35,42.4617]
[1752880968112,0.06,177.37,177.36,4.30510394]
[1752880969355,0.06,177.37,177.36,0.7]
[1752880969708,0.06,177.37,177.36,4.30510394]
[1752880970341,0.06,177.37,177.35,1.5017]
[1752880970645,0.06,177.37,177.35,46.04680394]
[1752880971538,0.06,177.37,177.36,3.60510394]
[1752880971718,0.06,177.37,177.36,10.68190394]
[1752880972026,0.06,177.37,177.36,51.62190394]
[1752880972624,0.06,177.37,177.36,10.68190394]
[1752880972834,0.06,177.37,177.36,51.62190394]
[1752880974546,0.06,177.37,177.36,48.0168]
[1752880974713,0.06,177.37,177.36,51.62190394]
[1752880975234,0.06,177.37,177.36,50.90190394]
[1752880975416,0.06,177.37,177.36,51.60190394]
[1752880976561,0.06,177.37,177.36,50.90190394]
[1752880976842,0.06,177.37,177.36,40.92]
[1752880977145,0.72,177.37,177.36,40.92]
[1752880977524,6.357932,177.37,177.36,40.92]
[1752880977723,6.357932,177.37,177.34,3.60510394]
[1752880977921,0.06,177.37,177.35,3.60510394]
[1752880979923,0.06,177.37,177.34,40.92]
[1752880980128,0.06,177.37,177.35,3.60510394]
[1752880980943,0.72,177.37,177.35,3.60510394]
[1752880981323,0.06,177.37,177.35,3.60510394]
[1752880981527,0.06,177.37,177.35,4.30510394]
[1752880982130,0.06,177.37,177.36,3.60510394]
[1752880982331,0.06,177.37,177.36,4.30510394]
[1752880982627,0.06,177.37,177.35,3.60510394]
[1752880982822,0.06,177.37,177.35,4.30510394]
[1752880983551,4.26510394,177.36,177.31,1.6199]
[1752880983726,3.60510394,177.33,177.29,0.03]
[1752880984051,6.29958732,177.32,177.29,40.93]
[1752880984629,6.29958732,177.32,177.29,44.53510394]
[1752880986951,5.63958732,177.32,177.29,44.53510394]
[1752880987135,5.63958732,177.32,177.3,0.67]
[1752880987554,5.63958732,177.32,177.29,44.53510394]
[1752880988054,0.06,177.37,177.34,6.3829]
[1752880988251,0.06,177.37,177.36,3.60510394]
[1752880988625,0.06,177.37,177.36,0.67]
[1752880988842,0.06,177.37,177.36,3.60510394]
[1752880989045,0.06,177.37,177.36,4.27510394]
[1752880994765,0.06,177.37,177.36,0.67]
[1752880994936,0.06,177.37,177.36,4.27510394]
[1752880997082,0.06,177.37,177.36,44.44510394]
[1752880997241,0.06,177.37,177.36,45.11510394]
[1752880999972,0.06,177.37,177.36,40.84]
[1752881000151,0.06,177.37,177.36,44.44510394]
[1752881000542,0.06,177.37,177.36,45.67892892]
[1752881001263,0.06,177.37,177.36,45.11510394]
[1752881001472,0.06,177.37,177.36,3.60510394]
[1752881001651,0.77,177.37,177.36,40.84]
[1752881001965,6.407932,177.37,177.33,3.60510394]
[1752881002168,0.06,177.37,177.34,40.84]
[1752881002482,0.06,177.37,177.34,45.11510394]
[1752881003156,0.06,177.37,177.36,3.60510394]
[1752881003357,0.06,177.37,177.36,44.44510394]
[1752881003762,0.06,177.37,177.36,40.84]
[1752881006155,0.06,177.37,177.31,0.67]
[1752881006156,0.77,177.37,177.31,0.67]
[1752881006480,4.37510394,177.37,177.32,44.42510394]
[1752881006677,0.71,177.36,177.33,3.60510394]
[1752881006978,0.06,177.37,177.35,3.60510394]
[1752881007170,0.06,177.37,177.36,44.42510394]
[1752881007569,0.06,177.37,177.36,45.09510394]
[1752881008369,0.06,177.37,177.36,50.73335382]
[1752881011866,0.06,177.37,177.36,45.09510394]
[1752881013286,0.06,177.37,177.36,50.73335382]
[1752881014391,0.06,177.37,177.36,45.09510394]
[1752881014566,0.06,177.37,177.36,40.82]
[1752881014772,0.06,177.37,177.36,44.42510394]
[1752881014967,0.06,177.37,177.35,1.6069]
[1752881015282,0.06,177.37,177.36,44.40510394]
[1752881015873,0.06,177.37,177.36,40.8]
[1752881016073,0.06,177.37,177.36,44.40510394]
[1752881016692,0.75,177.37,177.3,2.2716]
[1752881016876,0.75,177.37,177.33,3.60510394]
[1752881017076,0.75,177.37,177.3,2.2716]
[1752881017077,0.75,177.37,177.34,40.78]
[1752881017277,3.60510394,177.35,177.3,3.60510394]
[1752881017582,3.60510394,177.33,177.29,0.03]
[1752881017791,6.32952176,177.32,177.3,40.78]
[1752881018097,0.69,177.31,177.3,40.78]
[1752881019092,6.32983982,177.31,177.3,40.78]
[1752881019503,9.93494376,177.31,177.29,0.03]
[1752881019671,4.29510394,177.3,177.29,0.03]
[1752881019878,0.69,177.3,177.29,0.03]
[1752881020695,0.69,177.32,177.29,0.03]
[1752881021493,5.63983982,177.31,177.29,0.03]
[1752881021692,9.24494376,177.31,177.29,0.03]
[1752881021878,0.69,177.3,177.29,0.03]
[1752881022076,4.29510394,177.3,177.29,0.03]
[1752881022902,6.33015792,177.3,177.29,0.03]
[1752881026090,9.93526186,177.3,177.29,0.03]
[1752881027887,14.19212572,177.3,177.29,0.03]
[1752881032998,10.58702178,177.3,177.29,0.03]
[1752881033304,14.19212572,177.3,177.29,0.03]
[1752881039502,51.65722966,177.3,177.27,0.03]
[1752881039704,51.65722966,177.3,177.25,0.03]
[1752881039705,29.60510394,177.28,177.25,0.03]
[1752881040001,3.60510394,177.26,177.25,0.03]
[1752881040383,4.29510394,177.26,177.25,0.03]
[1752881041496,9.9365346,177.26,177.25,0.03]
[1752881043305,9.9365346,177.26,177.23,0.03]
[1752881043508,153.5412068,177.27,177.23,3.63510394]
[1752881043711,153.5412068,177.27,177.24,0.71]
[1752881044379,154.2312068,177.27,177.24,0.71]
[1752881044580,154.2312068,177.27,177.23,3.63510394]
[1752881044796,154.2312068,177.27,177.23,4.34510394]
[1752881045483,153.5412068,177.27,177.24,0.71]
[1752881045789,4.29510394,177.32,177.26,3.60510394]
[1752881045991,41.43,177.32,177.27,3.60510394]
[1752881046198,44.34510394,177.32,177.27,4.26510394]
[1752881046504,0.67,177.31,177.27,4.26510394]
[1752881047004,5.63952176,177.32,177.28,4.26510394]
[1752881047209,6.30952176,177.32,177.28,4.26510394]
[1752881047415,5.63952176,177.32,177.3,3.60510394]
[1752881047592,5.63928914,177.33,177.31,3.60510394]
[1752881047910,5.63928914,177.33,177.31,4.26510394]
[1752881049017,0.06,177.37,177.32,0.66]
[1752881049331,2.95059523,177.37,177.36,3.60510394]
[1752881049617,0.06,177.37,177.36,4.26510394]
[1752881052920,0.06,177.37,177.36,3.60510394]
[1752881053417,0.06,177.37,177.35,3.60510394]
[1752881053599,0.06,177.37,177.34,0.66]
[1752881053600,0.06,177.37,177.36,3.60510394]
[1752881055111,0.06,177.37,177.35,3.60510394]
[1752881056426,0.06,177.37,177.31,7.27258298]
[1752881056427,0.67,177.36,177.31,2.2928]
[1752881056598,0.67,177.36,177.33,3.60510394]
[1752881057118,0.06,177.37,177.34,3.60510394]
[1752881057796,0.73,177.37,177.34,3.60510394]
[1752881058721,5.63824988,177.36,177.33,0.66]
[1752881058908,5.63824988,177.36,177.34,3.60510394]
[1752881059919,0.67,177.35,177.33,3.60510394]
[1752881060121,0.67,177.35,177.31,5.23790394]
[1752881060616,0.67,177.35,177.32,3.60510394]
[1752881060818,5.63824988,177.36,177.32,4.26510394]
[1752881061321,6.30824988,177.36,177.32,4.26510394]
[1752881062813,0.67,177.35,177.32,3.60510394]
[1752881063126,4.27510394,177.34,177.3,44.32510394]
[1752881063318,3.60510394,177.34,177.3,44.32510394]
[1752881063527,0.67,177.33,177.3,44.32510394]
[1752881064326,0.67,177.32,177.28,3.60510394]
[1752881064525,3.60510394,177.33,177.28,3.60510394]
[1752881064708,0.67,177.31,177.28,3.60510394]
[1752881065209,6.30986321,177.31,177.28,3.60510394]
[1752881065731,0.67,177.3,177.27,1.6576]
[1752881067127,5.63986321,177.31,177.27,5.26270394]
[1752881067452,5.63959121,177.32,177.29,3.60510394]
[1752881067815,5.63959121,177.32,177.29,4.26510394]
[1752881068634,0.67,177.33,177.29,4.26510394]
[1752881068810,75.21,177.36,177.32,3.60510394]
[1752881069016,5.6385678,177.35,177.32,4.26510394]
[1752881069226,0.06,177.37,177.33,4.26510394]
[1752881069428,0.06,177.37,177.34,0.66]
[1752881069735,5.69800043,177.37,177.35,0.66]
[1752881071431,0.06,177.37,177.35,0.66]
[1752881074017,0.06,177.37,177.35,4.26510394]
[1752881074540,0.06,177.37,177.35,3.60510394]
[1752881075242,0.06,177.37,177.34,3.60510394]
[1752881075417,0.06,177.37,177.34,4.26510394]
[1752881075617,0.06,177.37,177.35,4.26510394]
[1752881079141,0.06,177.37,177.36,4.32510394]
[1752881080652,0.06,177.37,177.36,9.96335382]
[1752881080832,0.06,177.37,177.36,4.32510394]
[1752881085337,0.06,177.37,177.36,3.60510394]
[1752881086153,0.06,177.37,177.36,4.32510394]
[1752881086642,0.06,177.37,177.35,40.64]
[1752881086842,0.06,177.37,177.34,42.1202]
[1752881087044,0.71,177.36,177.34,44.22510394]
[1752881087251,0.71,177.35,177.34,40.62]
[1752881087434,5.63828843,177.36,177.34,40.62]
[1752881088037,5.63828843,177.36,177.34,44.22510394]
[1752881088348,0.06,177.37,177.35,4.32510394]
[1752881089233,0.06,177.37,177.36,3.60510394]
[1752881089992,0.06,177.37,177.35,0.72]
[1752881090134,0.77,177.37,177.34,44.22510394]
[1752881091239,6.40807286,177.37,177.34,44.22510394]
[1752881091431,0.71,177.36,177.34,44.22510394]
[1752881091753,5.69807286,177.37,177.34,44.22510394]
[1752881092157,6.40807286,177.37,177.34,44.22510394]
[1752881092456,0.71,177.36,177.34,40.62]
[1752881092754,0.71,177.35,177.34,40.62]
[1752881093466,6.3485678,177.35,177.31,40.6]
[1752881093648,0.71,177.34,177.31,40.6]
[1752881093855,5.6385678,177.35,177.32,3.60510394]
[1752881094758,5.6385678,177.35,177.32,4.32510394]
[1752881095546,0.71,177.35,177.32,4.32510394]
[1752881095839,0.71,177.35,177.32,3.60510394]
[1752881096662,6.3486388,177.35,177.32,3.60510394]
[1752881097037,6.3486388,177.35,177.31,40.6]
[1752881097257,6.3486388,177.35,177.31,44.20510394]
[1752881097449,6.3486388,177.35,177.32,3.60510394]
[1752881098766,0.71,177.34,177.32,3.60510394]
[1752881099070,5.6386388,177.35,177.31,44.20510394]
[1752881099071,0.71,177.33,177.31,44.20510394]
[1752881099246,0.71,177.32,177.31,40.6]
[1752881099573,0.71,177.34,177.31,40.6]
[1752881099870,0.71,177.34,177.31,0.72]
[1752881100160,157.14374274,177.35,177.3,3.60510394]
[1752881100161,0.71,177.33,177.3,3.60510394]
[1752881100474,0.71,177.32,177.28,40.6]
[1752881100674,0.71,177.32,177.25,5.671684]
[1752881100675,3.60510394,177.3,177.25,3.63510394]
[1752881100961,0.71,177.29,177.26,3.60510394]
[1752881102254,6.35067163,177.29,177.25,0.03]
[1752881102453,6.35067163,177.29,177.25,3.63510394]
[1752881102656,31.63898737,177.34,177.28,3.60510394]
[1752881102970,32.34898737,177.34,177.32,3.60510394]
[1752881103153,32.34898737,177.34,177.29,0.72]
[1752881103154,0.71,177.33,177.31,3.60510394]
[1752881103354,0.71,177.32,177.28,44.20510394]
[1752881103791,0.71,177.31,177.28,44.20510394]
[1752881104152,6.35003396,177.31,177.28,44.20510394]
[1752881104373,6.34920374,177.33,177.3,3.60510394]
[1752881104577,6.34920374,177.33,177.28,41.32]
[1752881104578,0.71,177.33,177.31,3.60510394]
[1752881104784,0.71,177.36,177.32,3.60510394]
[1752881104953,4.91793888,177.36,177.32,3.60510394]
[1752881105155,4.20793888,177.36,177.32,3.60510394]
[1752881105356,6.34862962,177.35,177.28,40.6]
[1752881105557,0.71,177.34,177.31,3.60510394]
[1752881105768,9.24373356,177.35,177.31,3.60510394]
[1752881105983,0.71,177.33,177.31,3.60510394]
[1752881106184,6.34943524,177.33,177.29,0.72]
[1752881106385,0.69,177.32,177.26,41.29]
[1752881106554,0.69,177.32,177.28,3.60510394]
[1752881106863,0.69,177.31,177.28,3.60510394]
[1752881108065,0.69,177.3,177.27,3.60510394]
[1752881108579,5.64047605,177.29,177.26,44.89510394]
[1752881109582,4.29510394,177.28,177.25,0.03]
[1752881110089,0.69,177.27,177.25,0.03]
[1752881110581,6.33143066,177.26,177.25,0.03]
[1752881112068,9.9365346,177.26,177.25,0.03]
[1752881113697,6.33143066,177.26,177.25,0.03]
[1752881113989,5.64143066,177.26,177.25,0.03]
[1752881115576,40.6,177.28,177.25,0.03]
[1752881115761,5.70048346,177.29,177.25,4.32510394]
[1752881115962,153.60048346,177.29,177.26,0.69]
[1752881116192,157.2055874,177.29,177.26,0.69]
[1752881117190,9.24610146,177.28,177.25,0.03]
[1752881117403,9.24610146,177.28,177.25,0.72]
[1752881118507,0.69,177.27,177.25,0.03]
[1752881119288,4.29510394,177.27,177.25,0.03]
[1752881119490,9.93644233,177.27,177.25,0.03]
[1752881120678,9.24644233,177.27,177.25,0.03]
[1752881120877,4.29510394,177.26,177.25,0.03]
[1752881122800,9.9365346,177.26,177.25,0.03]
[1752881127992,101.18121857,177.26,177.25,0.03]
[1752881129388,40.19143066,177.26,177.25,0.03]
[1752881129594,43.1065346,177.26,177.25,0.03]
[1752881131007,43.7965346,177.26,177.25,0.03]
[1752881131315,60.58121857,177.26,177.25,0.03]
[1752881133721,43.7965346,177.26,177.25,0.03]
[1752881134218,5.64079422,177.28,177.25,0.72]
[1752881134525,0.06,177.29,177.26,4.29510394]
[1752881134712,0.06,177.29,177.27,3.60510394]
[1752881134918,0.06,177.29,177.27,4.29510394]
[1752881135094,0.06,177.29,177.28,0.69]
[1752881135494,0.06,177.29,177.28,4.29510394]
[1752881137701,0.06,177.29,177.27,3.60510394]
[1752881137901,0.06,177.29,177.26,41.3]
[1752881137902,0.06,177.29,177.26,44.90510394]
[1752881138933,0.06,177.29,177.26,41.3]
[1752881139236,0.76,177.29,177.26,40.58]
[1752881139416,5.70073522,177.29,177.26,40.58]
[1752881140610,5.70073522,177.29,177.25,11.77220394]
[1752881140813,5.70073522,177.29,177.25,12.49220394]
[1752881142001,5.70073522,177.29,177.26,0.72]
[1752881143433,3.60510394,177.27,177.25,0.03]
[1752881143736,3.60510394,177.26,177.25,0.03]
[1752881143937,4.30510394,177.26,177.25,0.03]
[1752881144726,64.16510394,177.26,177.23,0.03]
[1752881144914,29.60510394,177.24,177.23,0.03]
[1752881145436,35.94717119,177.24,177.23,0.03]
[1752881146845,86.59185516,177.24,177.23,0.03]
[1752881147711,32.34206725,177.24,177.23,0.03]
[1752881147938,35.94717119,177.24,177.23,0.03]
[1752881150121,35.24717119,177.24,177.23,0.03]
[1752881150644,151.50510394,177.28,177.23,4.35510394]
[1752881150940,151.50510394,177.28,177.24,0.72]
[1752881151126,151.50510394,177.28,177.23,3.63510394]
[1752881151440,151.50510394,177.28,177.24,0.72]
[1752881151643,3.60510394,177.26,177.23,0.03]
[1752881151826,3.60510394,177.24,177.23,0.03]
[1752881152216,4.30510394,177.24,177.23,0.03]
[1752881152640,8.52086366,177.24,177.23,0.03]
[1752881153049,14.16293091,177.24,177.23,0.03]
[1752881153426,9.94717119,177.24,177.23,0.03]
[1752881155122,14.16286579,177.24,177.23,0.03]
[1752881155343,48.02286579,177.24,177.23,0.03]
[1752881157582,48.02170152,177.24,177.23,0.03]
[1752881158053,43.80717119,177.24,177.23,0.03]
[1752881159438,48.02103834,177.24,177.23,0.03]
[1752881160140,39.50206725,177.24,177.23,0.03]
[1752881160347,43.10717119,177.24,177.23,0.03]
[1752881160647,5.64206725,177.24,177.23,0.03]
[1752881161834,9.24717119,177.24,177.23,0.03]
[1752881162035,9.94717119,177.24,177.23,0.03]
[1752881164157,14.16059184,177.24,177.23,0.03]
[1752881164454,14.1604727,177.24,177.23,0.03]
[1752881165535,48.0204727,177.24,177.23,0.03]
[1752881166830,43.80717119,177.24,177.23,0.03]
[1752881167336,48.01958726,177.24,177.23,0.03]
[1752881167737,59.86,177.22,177.21,0.03]
[1752881167946,125.02220398,177.22,177.21,1e-08]
[1752881168149,76.64468397,177.2,177.19,1e-08]
[1752881168452,125.02298497,177.2,177.19,1e-08]
[1752881168660,125.68298497,177.2,177.19,1e-08]
[1752881169038,131.32632582,177.2,177.19,1e-08]
[1752881169231,105.32632582,177.2,177.19,1e-08]
[1752881170563,71.46632582,177.2,177.19,1e-08]
[1752881171139,67.86122188,177.2,177.19,1e-08]
[1752881171546,71.46632582,177.2,177.19,1e-08]
[1752881172176,42.78468397,177.16,177.15,0.03]
[1752881172472,42.78468397,177.16,177.15,1e-08]
[1752881172473,86.94978791,177.16,177.15,1e-08]
[1752881172634,91.81526553,177.16,177.15,1e-08]
[1752881173259,97.45988056,177.16,177.15,1e-08]
[1752881173660,46.38978791,177.12,177.11,0.2]
[1752881173843,90.57489185,177.12,177.11,0.2]
[1752881174164,95.4386035,177.12,177.11,0.2]
[1752881174366,91.23489185,177.12,177.11,0.2]
[1752881174574,87.62978791,177.12,177.11,0.2]
[1752881174732,92.15306963,177.12,177.11,0.2]
[1752881175355,97.79895942,177.12,177.11,0.2]
[1752881175577,81.01427545,177.12,177.11,0.2]
[1752881177256,55.01427545,177.12,177.1,1e-08]
[1752881177973,4.26510394,177.11,177.1,1e-08]
[1752881178153,21.04978791,177.11,177.1,1e-08]
[1752881178771,66.58,177.11,177.1,1e-08]
[1752881178968,70.18510394,177.11,177.1,1e-08]
[1752881179273,35.91131251,177.11,177.1,1e-08]
[1752881180368,69.77131251,177.11,177.1,1e-08]
[1752881181770,66.16620857,177.11,177.1,1e-08]
[1752881181972,69.11131251,177.11,177.1,1e-08]
[1752881182146,69.77131251,177.11,177.1,1e-08]
[1752881182865,35.25131251,177.11,177.1,1e-08]
[1752881183383,75.83131251,177.11,177.1,1e-08]
[1752881184683,75.85131251,177.11,177.1,1e-08]
[1752881186295,93.29599648,177.11,177.1,1e-08]
[1752881186459,16.78468397,177.09,177.07,0.2]
[1752881186646,188.7,177.08,177.07,0.2]
[1752881186846,192.30510394,177.08,177.07,0.2]
[1752881187452,151.50510394,177.08,177.07,0.89]
[1752881188203,157.15226906,177.08,177.07,0.89]
[1752881188355,157.15226906,177.08,177.07,0.2]
[1752881188680,157.81226906,177.08,177.07,0.2]
[1752881188984,157.81226906,177.08,177.07,1e-08]
[1752881188985,26.69695303,177.08,177.07,1e-08]
[1752881189482,30.88177238,177.08,177.07,1e-08]
[1752881189685,90.74177238,177.08,177.07,1e-08]
[1752881190250,87.13666844,177.08,177.07,1e-08]
[1752881190476,90.74177238,177.08,177.07,1e-08]
[1752881193744,90.73866923,177.08,177.07,1e-08]
[1752881193945,64.73866923,177.08,177.07,1e-08]
[1752881194146,42.78468397,177.06,177.05,1e-08]
[1752881194373,97.35930711,177.06,177.05,1e-08]
[1752881194554,98.01930711,177.06,177.05,1e-08]
[1752881196579,72.787803,177.06,177.05,0.68000001]
[1752881196764,35.25290694,177.06,177.05,0.68000001]
[1752881197464,31.647803,177.06,177.05,0.68000001]
[1752881197680,35.25290694,177.06,177.05,0.68000001]
[1752881197885,31.647803,177.06,177.05,0.68000001]
[1752881198254,35.25290694,177.06,177.05,0.68000001]
[1752881198578,147.9,177.07,177.05,0.68000001]
[1752881198768,151.50510394,177.12,177.06,5.27040394]
[1752881198971,3.60510394,177.13,177.1,6.017]
[1752881199283,3.60510394,177.11,177.08,0.68]
[1752881199583,3.60510394,177.11,177.06,8.3623]
[1752881199584,3.60510394,177.09,177.06,8.3623]
[1752881199789,3.60510394,177.07,177.05,1e-08]
[1752881199963,29.60510394,177.06,177.05,1e-08]
[1752881200162,35.25290694,177.06,177.05,1e-08]
[1752881200382,69.11290694,177.06,177.05,1e-08]
[1752881200681,35.25290694,177.06,177.05,1e-08]
[1752881201065,26.0,177.07,177.05,0.68000001]
[1752881201383,9.25195017,177.09,177.05,0.68000001]
[1752881202261,9.25195017,177.09,177.07,0.03]
[1752881202459,9.25195017,177.09,177.07,0.71]
[1752881202767,5.64630373,177.11,177.08,3.60510394]
[1752881202970,5.64630373,177.11,177.09,0.68]
[1752881203785,5.70593205,177.12,177.1,0.68]
[1752881204082,31.70593205,177.12,177.11,0.68]
[1752881205369,31.70593205,177.12,177.09,11.96740394]
[1752881205660,38.20235733,177.12,177.09,8.3623]
[1752881206566,3.60510394,177.11,177.09,7.6823]
[1752881207062,3.60510394,177.11,177.09,1.6653]
[1752881207875,5.64652738,177.1,177.09,1.6653]
[1752881208078,9.25163132,177.1,177.07,0.03]
[1752881208385,9.96163132,177.1,177.07,0.03]
[1752881208585,9.96163132,177.1,177.08,0.68]
[1752881208586,5.64652738,177.1,177.08,0.68]
[1752881208886,5.64652738,177.1,177.09,0.68]
[1752881209055,9.25163132,177.1,177.07,0.03]
[1752881209260,5.64652738,177.1,177.07,0.03]
[1752881209561,59.86,177.06,177.05,1e-08]
[1752881209780,31.64876009,177.03,177.02,0.03]
[1752881209979,69.11386403,177.03,177.02,1e-08]
[1752881210185,111.20386403,177.03,177.02,1e-08]
[1752881210406,132.18926056,177.03,177.02,1e-08]
[1752881210709,3.60510394,177.01,177.0,0.03]
[1752881211055,6.61144162,177.01,177.0,0.03]
[1752881211475,123.67344406,177.03,177.0,0.03]
[1752881211872,5.90144162,177.01,177.0,0.03]
[1752881212081,5.64914377,177.02,177.0,0.71]
[1752881212295,5.64914377,177.02,177.01,0.68]
[1752881212586,5.64914377,177.02,177.0,0.03]
[1752881212807,5.64914377,177.02,177.0,0.71]
[1752881213608,11.55058539,177.02,177.0,0.03]
[1752881213986,11.55083995,177.01,177.0,0.03]
[1752881214202,12.26083995,177.01,177.0,0.03]
[1752881214511,16.46979628,177.01,177.0,0.03]
[1752881214718,10.56835466,177.01,177.0,0.03]
[1752881214896,16.46979628,177.01,177.0,0.03]
[1752881215217,12.26083995,177.01,177.0,0.03]
[1752881215514,11.55083995,177.01,177.0,0.03]
[1752881216082,52.95062767,177.02,177.0,0.03]
[1752881216598,5.90144162,177.01,177.0,0.03]
[1752881216784,61.46708823,177.01,177.0,0.03]
[1752881217197,61.46708823,177.01,177.0,1e-08]
[1752881217384,61.46708823,177.01,176.99,1e-08]
[1752881217695,86.04240426,177.0,176.99,1e-08]
[1752881217900,50.64468397,176.99,176.98,1e-08]
[1752881218108,67.11712495,176.99,176.98,1e-08]
[1752881218280,67.11712495,176.99,176.9,6.58144162]
[1752881218281,76.64468397,176.94,176.93,1e-08]
[1752881218481,128.09708823,176.94,176.93,1e-08]
[1752881218710,128.80708823,176.94,176.93,1e-08]
[1752881218883,87.46708823,176.94,176.93,1e-08]
[1752881219194,128.80702685,176.94,176.93,1e-08]
[1752881219380,122.90558523,176.94,176.93,1e-08]
[1752881219581,128.09702685,176.94,176.93,1e-08]
[1752881219981,26.0,176.94,176.93,1e-08]
[1752881220178,31.65163332,176.94,176.93,1e-08]
[1752881220415,16.78468397,176.98,176.93,6.58144163]
[1752881220710,14.12509181,176.99,176.93,6.58144163]
[1752881220711,41.3,177.0,176.96,5.90144162]
[1752881220927,29.82753509,177.02,176.97,6.58144162]
[1752881221087,4.20443693,177.01,176.97,5.90144162]
[1752881221448,10.10587855,177.01,176.97,0.68]
[1752881221594,33.86,176.99,176.95,0.03]
[1752881221798,5.90144162,176.97,176.95,0.03]
[1752881222143,5.65099457,176.96,176.95,0.03]
[1752881222721,76.64468397,176.94,176.93,1e-08]
[1752881222935,123.86612559,176.94,176.93,1e-08]
[1752881223228,128.77940736,176.94,176.93,1e-08]
[1752881224318,130.22775891,176.94,176.93,1e-08]
[1752881224624,134.6431403,176.94,176.93,1e-08]
[1752881227196,82.29631729,176.94,176.93,1e-08]
[1752881227507,24.4221085,177.0,176.93,6.62144163]
[1752881227714,47.14144162,176.99,176.94,6.62144162]
[1752881227916,5.90144162,176.98,176.95,0.72]
[1752881228935,78.79147834,176.99,176.95,0.72]
[1752881229431,72.89003672,176.99,176.95,0.72]
[1752881229732,37.55147834,176.99,176.94,5.90144162]
[1752881229900,26.0,176.97,176.96,0.72]
[1752881230305,5.65003672,176.99,176.96,0.72]
[1752881230506,5.65003672,176.99,176.95,5.90144162]